[Event "Czech Juniors Boys 2024"]
[Site "Jaromerice nad Rokytnou"]
[Date "2024.03.10"]
[Round "2.3"]
[White "Hak, David"]
[Black "Skypala, Ondrej"]
[Result "0-1"]
[ECO "B00"]
[WhiteElo "2283"]
[BlackElo "2234"]
[Annotator "ChessBase"]
[PlyCount "168"]
[EventDate "2024.03.10"]
[EventType "tourn"]
[EventCountry "CZE"]
[SourceTitle "playchess.com"]
[Source "ChessBase"]
[SourceQuality "1"]
[TimeControl "40/5400+30:1800+30"]

1. e4 {[%emt 0:00:02]} b6 {[%emt 0:00:28]} 2. d4 {[%emt 0:00:44]} e6 {[%emt 0:00:06]} 3. Nc3 {[%emt 0:00:36]} Bb7 {[%emt 0:00:05]} 4. Nf3 {[%emt 0:01:11]} Bb4 {[%emt 0:00:07]} 5. Bd3 {[%emt 0:01:37]} Nf6 {[%emt 0:03:36]} 6. e5 {[%emt 0:07:34]} Ne4 {[%emt 0:00:26]} 7. O-O {[%emt 0:14:50]} Nxc3 {[%emt 0:06:35]} 8. bxc3 {[%emt 0:00:07]} Bxc3 {[%emt 0:00:05]} 9. Rb1 {[%emt 0:02:19]} Bd5 {[%emt 0:04:27]} 10. Bg5 {[%emt 0:15:58]} Qc8 {[%emt 0:01:08]} 11. Qc1 {[%emt 0:03:59]} h6 {[%emt 0:14:39]} 12. Bd2 {[%emt 0:11:30]} Bxd2 {[%emt 0:01:57]} 13. Nxd2 {[%emt 0:00:08]} Bxa2 {[%emt 0:04:37]} 14. Rb2 {[%emt 0:01:46]} Bd5 {[%emt 0:03:12]} 15. f4 {[%emt 0:03:00]} Bb7 {[%emt 0:04:44]} 16. Qe1 {[%emt 0:05:18]} Nc6 {[%emt 0:02:09]} 17. Qg3 {[%emt 0:07:56]} Ne7 {[%emt 0:00:56]} 18. c4 {[%emt 0:08:05]} O-O {[%emt 0:13:10]} 19. Ne4 {[%emt 0:07:48]} Bxe4 {[%emt 0:01:20]} 20. Bxe4 {[%emt 0:00:00]} c6 {[%emt 0:00:16]} 21. Bb1 {[%emt 0:01:50]} f5 {[%emt 0:01:19]} 22. Qf3 {[%emt 0:02:39]} Qe8 {[%emt 0:02:59]} 23. g3 {[%emt 0:01:51]} Qf7 {[%emt 0:01:25]} 24. Rg2 {[%emt 0:00:02]} b5 {[%emt 0:02:35]} 25. cxb5 {[%emt 0:00:30]} cxb5 {[%emt 0:00:06]} 26. Ba2 {[%emt 0:00:40]} Nd5 {[%emt 0:01:12]} 27. g4 {[%emt 0:00:54]} fxg4 {[%emt 0:00:46]} 28. Rxg4 {[%emt 0:00:10]} Ne7 {[%emt 0:01:55]} 29. Kh1 {[%emt 0:00:29]} Kh8 {[%emt 0:00:53]} 30. Rfg1 {[%emt 0:00:18]} Nf5 {[%emt 0:02:23]} 31. Bb1 {[%emt 0:00:10]} Nxd4 {[%emt 0:03:07]} 32. Qd3 {[%emt 0:00:15]} Nf5 {[%emt 0:01:10]} 33. Rxg7 {[%emt 0:00:05]} Qh5 {[%emt 0:00:18]} 34. Rxd7 {[%emt 0:02:17]} Rg8 {[%emt 0:00:32]} 35. Rxg8+ {[%emt 0:00:27]} Rxg8 {[%emt 0:00:08]} 36. Rd8 {[%emt 0:00:20]} Qh4 {[%emt 0:01:08]} 37. Rxg8+ {[%emt 0:00:36]} Kxg8 {[%emt 0:00:07]} 38. Ba2 {[%emt 0:00:46]} Ng7 {[%emt 0:02:25]} 39. Qf1 {[%emt 0:00:40]} Kf7 {[%emt 0:02:55]} 40. Bb3 {[%emt 0:00:28]} Nh5 {[%emt 0:03:02]} 41. Qxb5 {[%emt 0:07:43]} Qe1+ {[%emt 0:02:04]} 42. Kg2 {[%emt 0:00:01]} Qe4+ {[%emt 0:00:20]} 43. Kg1 {[%emt 0:02:12]} Qe1+ {[%emt 0:00:36]} 44. Kg2 {[%emt 0:00:23]} Qe4+ {[%emt 0:00:05]} 45. Kg1 {[%emt 0:00:12]} Nxf4 {[%emt 0:02:38]} 46. Qd7+ {[%emt 0:11:11]} Kg6 {[%emt 0:00:06]} 47. Qe8+ {[%emt 0:00:52]} Kf5 {[%emt 0:01:46]} 48. Qf8+ {[%emt 0:03:39]} Kxe5 {[%emt 0:00:11]} 49. Qh8+ {[%emt 0:01:33]} Kd6 {[%emt 0:05:23]} 50. Qb8+ {[%emt 0:00:42]} Ke7 {[%emt 0:00:40]} 51. Qc7+ {[%emt 0:00:38]} Kf6 {[%emt 0:00:19]} 52. Qd8+ {[%emt 0:00:11]} Ke5 {[%emt 0:00:47]} 53. Qh8+ {[%emt 0:00:18]} Kf5 {[%emt 0:02:19]} 54. Qf8+ {[%emt 0:01:42]} Kg5 {[%emt 0:00:14]} 55. Qe7+ {[%emt 0:03:45]} Kg4 {[%emt 0:00:39]} 56. Qg7+ {[%emt 0:02:14]} Ng6 {[%emt 0:02:10]} 57. Qc3 {[%emt 0:00:58]} Kg5 {[%emt 0:03:09]} 58. Qd2+ {[%emt 0:00:29]} Qf4 {[%emt 0:06:36]} 59. Qd8+ {[%emt 0:00:02]} Qf6 {[%emt 0:00:09]} 60. Qa5+ {[%emt 0:00:37]} Qf5 {[%emt 0:03:16]} 61. Qd8+ {[%emt 0:00:21]} Kg4 {[%emt 0:03:12]} 62. Qd1+ {[%emt 0:01:14]} Kh4 {[%emt 0:00:30]} 63. Qe1+ {[%emt 0:00:13]} Kg5 {[%emt 0:00:13]} 64. Bxe6 {[%emt 0:00:35]} Qc5+ {[%emt 0:01:02]} 65. Kh1 {[%emt 0:00:47]} Kf6 {[%emt 0:01:20]} 66. Bh3 {[%emt 0:00:17]} Nf4 {[%emt 0:00:55]} 67. Qh4+ {[%emt 0:00:14]} Qg5 {[%emt 0:00:08]} 68. Qxg5+ {[%emt 0:00:38]} Kxg5 {[%emt 0:01:12]} 69. Bd7 {[%emt 0:00:08]} a5 {[%emt 0:00:05]} 70. Kg1 {[%emt 0:00:25]} Nd3 {[%emt 0:00:05]} 71. Kf1 {[%emt 0:01:01]} Kf4 {[%emt 0:00:40]} 72. Ke2 {[%emt 0:00:16]} Ne5 {[%emt 0:00:06]} 73. Be6 {[%emt 0:00:44]} Nf3 {[%emt 0:00:14]} 74. Kd3 {[%emt 0:00:31]} Nxh2 {[%emt 0:00:13]} 75. Bf7 {[%emt 0:00:33]} Nf3 {[%emt 0:02:06]} 76. Kc3 {[%emt 0:00:01]} Ne5 {[%emt 0:00:08]} 77. Be8 {[%emt 0:00:25]} Kg5 {[%emt 0:00:09]} 78. Kb3 {[%emt 0:00:12]} h5 {[%emt 0:00:26]} 79. Bb5 {[%emt 0:01:16]} h4 {[%emt 0:00:20]} 80. Bf1 {[%emt 0:00:02]} Kg4 {[%emt 0:00:47]} 81. Ka4 {[%emt 0:01:09]} Kg3 {[%emt 0:00:14]} 82. Kxa5 {[%emt 0:00:14]} Ng4 {[%emt 0:00:06]} 83. Bd3 {[%emt 0:00:40]} h3 {[%emt 0:00:17]} 84. Kb4 {[%emt 0:00:13]} Ne3 {[%emt 0:00:15]} 0-1

[Event "Czech Juniors Boys 2024"]
[Site "Jaromerice nad Rokytnou"]
[Date "2024.03.10"]
[Round "2.4"]
[White "Frank, Adam"]
[Black "Vilimek, Vit"]
[Result "1-0"]
[ECO "B20"]
[WhiteElo "2284"]
[BlackElo "2061"]
[Annotator "ChessBase"]
[PlyCount "113"]
[EventDate "2024.03.10"]
[EventType "tourn"]
[EventCountry "CZE"]
[SourceTitle "playchess.com"]
[Source "ChessBase"]
[SourceQuality "1"]
[TimeControl "40/5400+30:1800+30"]

1. e4 {[%emt 0:00:03]} e6 {[%emt 0:00:04]} 2. b3 {[%emt 0:00:05]} d5 {[%emt 0:00:16]} 3. Bb2 {[%emt 0:00:04]} c5 {[%emt 0:02:06]} 4. exd5 {[%emt 0:00:25]} exd5 {[%emt 0:00:02]} 5. Bb5+ {[%emt 0:00:06]} Bd7 {[%emt 0:00:50]} 6. Qe2+ {[%emt 0:12:02]} Qe7 {[%emt 0:02:43]} 7. Nc3 {[%emt 0:00:19]} Bxb5 {[%emt 0:14:47]} 8. Nxb5 {[%emt 0:00:16]} Kd7 {[%emt 0:00:14]} 9. O-O-O {[%emt 0:07:45]} Qxe2 {[%emt 0:00:55]} 10. Nxe2 {[%emt 0:00:06]} a6 {[%emt 0:01:14]} 11. Nbc3 {[%emt 0:06:40]} d4 {[%emt 0:07:58]} 12. Ne4 {[%emt 0:00:05]} Nc6 {[%emt 0:02:11]} 13. c3 {[%emt 0:05:01]} Re8 {[%emt 0:00:27]} 14. f3 {[%emt 0:00:42]} Nf6 {[%emt 0:08:27]} 15. Nxf6+ {[%emt 0:05:22]} gxf6 {[%emt 0:00:09]} 16. Ng3 {[%emt 0:00:19]} Re5 {[%emt 0:02:31]} 17. f4 {[%emt 0:13:33]} Re8 {[%emt 0:09:22]} 18. Nf5 {[%emt 0:00:16]} Re4 {[%emt 0:03:37]} 19. g3 {[%emt 0:00:52]} Ke6 {[%emt 0:00:19]} 20. Nh4 {[%emt 0:01:20]} f5 {[%emt 0:02:34]} 21. Rhe1 {[%emt 0:02:54]} Be7 {[%emt 0:18:01]} 22. d3 {[%emt 0:06:23]} Rxe1 {[%emt 0:00:02]} 23. Rxe1+ {[%emt 0:00:05]} Kf6 {[%emt 0:00:04]} 24. Nf3 {[%emt 0:02:10]} Rd8 {[%emt 0:01:49]} 25. cxd4 {[%emt 0:00:19]} cxd4 {[%emt 0:00:25]} 26. a3 {[%emt 0:00:10]} Bc5 {[%emt 0:06:54]} 27. Kd2 {[%emt 0:05:02]} Bb6 {[%emt 0:01:53]} 28. b4 {[%emt 0:05:41]} h6 {[%emt 0:00:35]} 29. Rc1 {[%emt 0:02:50]} Rd5 {[%emt 0:00:40]} 30. Rc4 {[%emt 0:00:12]} Ke6 {[%emt 0:01:41]} 31. a4 {[%emt 0:01:41]} Kd6 {[%emt 0:00:29]} 32. Ba3 {[%emt 0:01:01]} Kd7 {[%emt 0:03:58]} 33. Rc1 {[%emt 0:03:38]} Bc7 {[%emt 0:00:00]} 34. Kc2 {[%emt 0:00:44]} Bd6 {[%emt 0:02:01]} 35. Kb3 {[%emt 0:00:04]} b5 {[%emt 0:00:43]} 36. Ra1 {[%emt 0:05:01]} Be7 {[%emt 0:02:04]} 37. Ne1 {[%emt 0:03:38]} Rd6 {[%emt 0:02:24]} 38. axb5 {[%emt 0:08:40]} axb5 {[%emt 0:00:01]} 39. Nc2 {[%emt 0:00:44]} Re6 {[%emt 0:00:04]} 40. Bb2 {[%emt 0:00:01]} Re2 {[%emt 0:00:28]} 41. Na3 {[%emt 0:32:16]} Rd2 {[%emt 0:10:48]} 42. Nxb5 {[%emt 0:00:00]} Rxh2 {[%emt 0:13:22]} 43. Bxd4 {[%emt 0:00:00]} Rg2 {[%emt 0:02:52]} 44. Bc5 {[%emt 0:00:00]} Rxg3 {[%emt 0:03:13]} 45. Kc4 {[%emt 0:00:00]} Rf3 {[%emt 0:03:53]} 46. Bxe7 {[%emt 0:00:00]} Rxf4+ {[%emt 0:00:51]} 47. Kc5 {[%emt 0:00:00]} Nxe7 {[%emt 0:01:52]} 48. Ra7+ {[%emt 0:00:00]} Ke6 {[%emt 0:01:03]} 49. Nc7+ {[%emt 0:00:00]} Ke5 {[%emt 0:00:36]} 50. Ra1 {[%emt 0:00:00]} Kf6 {[%emt 0:01:05]} 51. Ne8+ {[%emt 0:00:00]} Kg6 {[%emt 0:00:30]} 52. b5 {[%emt 0:00:00]} Rf2 {[%emt 0:00:12]} 53. b6 {[%emt 0:00:00]} Rb2 {[%emt 0:00:23]} 54. Nd6 {[%emt 0:00:00]} f4 {[%emt 0:00:27]} 55. b7 {[%emt 0:00:00]} Ng8 {[%emt 0:01:17]} 56. Nb5 {[%emt 0:00:00]} Nf6 {[%emt 0:00:02]} 57. Ra6 {[%emt 0:00:00]} 1-0

[Event "Czech Juniors Boys 2024"]
[Site "Jaromerice nad Rokytnou"]
[Date "2024.03.10"]
[Round "2.5"]
[White "Jares, Michal"]
[Black "Soucek, Petr"]
[Result "1-0"]
[ECO "A05"]
[WhiteElo "2347"]
[BlackElo "2209"]
[Annotator "RC"]
[PlyCount "77"]
[EventDate "2024.03.10"]
[EventType "tourn"]
[EventCountry "CZE"]
[SourceTitle "playchess.com"]
[Source "ChessBase"]
[SourceQuality "1"]
[TimeControl "40/5400+30:1800+30"]

1. Nf3 {[%emt 0:00:02]} Nf6 {[%emt 0:01:21]} 2. g3 {[%emt 0:00:03]} d5 {[%emt 0:00:14]} 3. Bg2 {[%emt 0:00:07]} c5 {[%emt 0:00:06]} 4. O-O {[%emt 0:00:07]} g6 {[%emt 0:00:05]} 5. b3 {[%emt 0:01:35]} Bg7 {[%emt 0:00:22]} 6. Bb2 {[%emt 0:00:03]} O-O {[%emt 0:00:22]} 7. c4 {[%emt 0:00:14]} d4 {[%emt 0:12:03]} 8. b4 {[%emt 0:02:00]} Nfd7 {[%emt 0:02:08]} 9. bxc5 {[%emt 0:04:45]} Nc6 {[%emt 0:01:07]} 10. d3 {[%emt 0:02:28]} Nxc5 {[%emt 0:10:42]} 11. Nbd2 {[%emt 0:03:18]} h6 {[%emt 0:01:51]} 12. Rb1 {[%emt 0:03:40]} Bd7 {[%emt 0:12:48]} 13. Ba3 {[%emt 0:02:59]} b6 {[%emt 0:04:26]} 14. Bxc5 {[%emt 0:04:39]} bxc5 {[%emt 0:00:04]} 15. Ne4 {[%emt 0:05:38]} Qa5 {[%emt 0:08:20]} 16. Qd2 {[%emt 0:09:43]} Rac8 {[%emt 0:03:46]} 17. Rb5 {[%emt 0:06:58]} Qxd2 {[%emt 0:01:49]} 18. Nfxd2 {[%emt 0:00:22]} a6 {[%emt 0:09:04]} 19. Rb6 {[%emt 0:18:55]} Nb8 {[%emt 0:15:08]} 20. Nb3 {[%emt 0:01:18]} Bg4 {[%emt 0:03:42]} 21. Nexc5 {[%emt 0:02:11]} Bxe2 {[%emt 0:05:55]} 22. Re1 {[%emt 0:00:02]} Bg4 {[%emt 0:00:19]} 23. h3 {[%emt 0:00:33]} Nd7 {[%emt 0:01:36]} 24. Nxd7 {[%emt 0:00:54]} Bxd7 {[%emt 0:00:02]} 25. Rxe7 {[%emt 0:00:37]} Bf5 {[%emt 0:00:39]} 26. Be4 {[%emt 0:00:49]} Bxh3 {[%emt 0:00:58]} 27. Rxa6 {[%emt 0:00:20]} Rfe8 {[%emt 0:01:45]} 28. Rxe8+ {[%emt 0:01:02]} Rxe8 {[%emt 0:00:05]} 29. Ra8 {[%emt 0:01:05]} Kf8 {[%emt 0:00:32]} 30. Rxe8+ {[%emt 0:00:48]} Kxe8 {[%emt 0:00:04]} 31. a4 {[%emt 0:00:33]} Kd8 {[%emt 0:00:23]} 32. a5 {[%emt 0:00:25]} Kc7 {[%emt 0:00:13]} 33. a6 {[%emt 0:02:08]} Kb6 {[%emt 0:00:26]} 34. Bb7 {[%emt 0:00:03]} Bf5 {[%emt 0:01:34]} 35. c5+ {[%emt 0:01:03]} Kc7 {[%emt 0:01:05]} 36. Na5 {[%emt 0:00:32]} Kb8 {[%emt 0:00:13]} 37. c6 {[%emt 0:00:53]} Be5 {[%emt 0:00:17]} 38. c7+ {[%emt 0:00:18]} Bxc7 {[%emt 0:00:39]} 39. Nc6# {[%emt 0:00:41]} 1-0

[Event "Czech Juniors Boys 2024"]
[Site "Jaromerice nad Rokytnou"]
[Date "2024.03.10"]
[Round "2.6"]
[White "Jun, Rudolf"]
[Black "Seidl, Jan"]
[Result "0-1"]
[ECO "B13"]
[WhiteElo "2243"]
[BlackElo "2230"]
[Annotator "ChessBase"]
[PlyCount "66"]
[EventDate "2024.03.10"]
[EventType "tourn"]
[EventCountry "CZE"]
[SourceTitle "playchess.com"]
[Source "ChessBase"]
[SourceQuality "1"]
[TimeControl "40/5400+30:1800+30"]

1. e4 {[%emt 0:00:05]} c6 {[%emt 0:00:05]} 2. d4 {[%emt 0:00:07]} d5 {[%emt 0:00:05]} 3. exd5 {[%emt 0:00:04]} cxd5 {[%emt 0:00:06]} 4. c4 {[%emt 0:00:05]} Nf6 {[%emt 0:00:07]} 5. Nc3 {[%emt 0:00:06]} Nc6 {[%emt 0:00:09]} 6. Nf3 {[%emt 0:00:17]} Bg4 {[%emt 0:00:22]} 7. Be3 {[%emt 0:03:43]} e6 {[%emt 0:01:55]} 8. c5 {[%emt 0:05:22]} g6 {[%emt 0:01:33]} 9. Qb3 {[%emt 0:07:50]} Qc8 {[%emt 0:13:06]} 10. Ne5 {[%emt 0:07:40]} Bf5 {[%emt 0:09:35]} 11. Qa4 {[%emt 0:17:19]} Nd7 {[%emt 0:17:13]} 12. Bf4 {[%emt 0:23:04]} g5 {[%emt 0:19:04]} 13. Nxc6 {[%emt 0:07:26]} gxf4 {[%emt 0:00:39]} 14. Ne5 {[%emt 0:00:25]} Ke7 {[%emt 0:00:18]} 15. Nxd7 {[%emt 0:04:11]} Qxd7 {[%emt 0:00:07]} 16. Bb5 {[%emt 0:00:33]} Qc7 {[%emt 0:00:43]} 17. Be2 {[%emt 0:00:36]} Kf6 {[%emt 0:06:24]} 18. Bf3 {[%emt 0:01:00]} Kg7 {[%emt 0:00:33]} 19. g4 {[%emt 0:02:38]} Bg6 {[%emt 0:04:13]} 20. h4 {[%emt 0:00:07]} h6 {[%emt 0:00:21]} 21. O-O {[%emt 0:07:29]} Rg8 {[%emt 0:04:10]} 22. Rfe1 {[%emt 0:02:13]} Kh8 {[%emt 0:01:25]} 23. Kh1 {[%emt 0:03:25]} Qd8 {[%emt 0:01:10]} 24. Kg2 {[%emt 0:03:14]} Bf5 {[%emt 0:02:36]} 25. Kh3 {[%emt 0:01:45]} Qf6 {[%emt 0:00:45]} 26. Re5 {[%emt 0:01:58]} Be7 {[%emt 0:04:30]} 27. Kg2 {[%emt 0:00:46]} Bxg4 {[%emt 0:02:56]} 28. Bxg4 {[%emt 0:00:19]} f3+ {[%emt 0:00:13]} 29. Kf1 {[%emt 0:00:36]} Rxg4 {[%emt 0:00:19]} 30. Ke1 {[%emt 0:00:35]} Bxc5 {[%emt 0:01:46]} 31. Qb5 {[%emt 0:00:31]} Bxd4 {[%emt 0:00:52]} 32. Qxb7 {[%emt 0:00:23]} Qxe5+ {[%emt 0:01:03]} 33. Kd2 {[%emt 0:00:01]} Rb8 {[%emt 0:00:33]} 0-1

[Event "Czech Juniors Boys 2024"]
[Site "Jaromerice nad Rokytnou"]
[Date "2024.03.10"]
[Round "3.1"]
[White "Seidl, Jan"]
[Black "Lang, Simon"]
[Result "1-0"]
[ECO "C11"]
[WhiteElo "2230"]
[BlackElo "2043"]
[Annotator "ChessBase"]
[PlyCount "87"]
[EventDate "2024.03.10"]
[EventType "tourn"]
[EventCountry "CZE"]
[SourceTitle "playchess.com"]
[Source "ChessBase"]
[SourceQuality "1"]
[TimeControl "40/5400+30:1800+30"]

1. e4 {[%emt 0:00:05]} e6 {[%emt 0:00:52]} 2. d4 {[%emt 0:00:10]} d5 {[%emt 0:00:35]} 3. Nc3 {[%emt 0:00:07]} Nf6 {[%emt 0:01:30]} 4. e5 {[%emt 0:00:23]} Nfd7 {[%emt 0:00:17]} 5. f4 {[%emt 0:00:50]} c5 {[%emt 0:01:34]} 6. Nce2 {[%emt 0:00:19]} Nc6 {[%emt 0:03:15]} 7. c3 {[%emt 0:00:15]} cxd4 {[%emt 0:04:28]} 8. cxd4 {[%emt 0:00:40]} b5 {[%emt 0:04:16]} 9. Nf3 {[%emt 0:07:09]} Nb6 {[%emt 0:03:04]} 10. h4 {[%emt 0:08:12]} Nc4 {[%emt 0:08:11]} 11. h5 {[%emt 0:03:47]} Bb4+ {[%emt 0:07:21]} 12. Kf2 {[%emt 0:00:07]} h6 {[%emt 0:03:26]} 13. g4 {[%emt 0:13:53]} Qb6 {[%emt 0:02:21]} 14. b3 {[%emt 0:03:31]} Na3 {[%emt 0:02:04]} 15. Be3 {[%emt 0:02:50]} Ba6 {[%emt 0:02:22]} 16. f5 {[%emt 0:03:54]} O-O-O {[%emt 0:03:16]} 17. Nf4 {[%emt 0:04:02]} Rhe8 {[%emt 0:14:30]} 18. Rc1 {[%emt 0:03:40]} Kb8 {[%emt 0:00:55]} 19. fxe6 {[%emt 0:06:41]} fxe6 {[%emt 0:00:07]} 20. Bh3 {[%emt 0:00:31]} Bf8 {[%emt 0:00:50]} 21. g5 {[%emt 0:02:04]} Bc8 {[%emt 0:04:36]} 22. gxh6 {[%emt 0:03:20]} gxh6 {[%emt 0:00:07]} 23. Rg1 {[%emt 0:00:05]} b4 {[%emt 0:03:15]} 24. Rg6 {[%emt 0:04:42]} Ne7 {[%emt 0:00:24]} 25. Rxe6 {[%emt 0:00:44]} Bxe6 {[%emt 0:00:14]} 26. Nxe6 {[%emt 0:00:12]} Rc8 {[%emt 0:02:48]} 27. Nc5 {[%emt 0:04:36]} Rxc5 {[%emt 0:01:20]} 28. dxc5 {[%emt 0:00:07]} Qc7 {[%emt 0:00:46]} 29. Qd2 {[%emt 0:02:39]} Nc6 {[%emt 0:00:38]} 30. Bf4 {[%emt 0:01:38]} Ka8 {[%emt 0:00:22]} 31. Qxd5 {[%emt 0:04:07]} Rd8 {[%emt 0:00:28]} 32. Qe4 {[%emt 0:02:24]} Nb5 {[%emt 0:00:27]} 33. Bg2 {[%emt 0:01:34]} Nc3 {[%emt 0:00:19]} 34. Qc4 {[%emt 0:00:15]} Qa5 {[%emt 0:01:51]} 35. Nd2 {[%emt 0:05:04]} Bxc5+ {[%emt 0:01:48]} 36. Kg3 {[%emt 0:00:32]} Qb6 {[%emt 0:00:45]} 37. Ne4 {[%emt 0:01:48]} Be3 {[%emt 0:00:48]} 38. Nxc3 {[%emt 0:02:10]} Bxf4+ {[%emt 0:02:40]} 39. Qxf4 {[%emt 0:00:16]} Rd3+ {[%emt 0:00:08]} 40. Kh2 {[%emt 0:00:11]} Rxc3 {[%emt 0:00:56]} 41. Rxc3 {[%emt 0:30:25]} bxc3 {[%emt 0:30:07]} 42. Qc4 {[%emt 0:00:29]} Kb7 {[%emt 0:00:11]} 43. Qxc3 {[%emt 0:00:55]} Kc7 {[%emt 0:00:29]} 44. Qxc6+ {[%emt 0:00:59]} 1-0

[Event "Czech Juniors Boys 2024"]
[Site "Jaromerice nad Rokytnou"]
[Date "2024.03.10"]
[Round "3.2"]
[White "Soucek, Petr"]
[Black "Jun, Rudolf"]
[Result "0-1"]
[ECO "E16"]
[WhiteElo "2209"]
[BlackElo "2243"]
[Annotator "ChessBase"]
[PlyCount "132"]
[EventDate "2024.03.10"]
[EventType "tourn"]
[EventCountry "CZE"]
[SourceTitle "playchess.com"]
[Source "ChessBase"]
[SourceQuality "1"]
[TimeControl "40/5400+30:1800+30"]

1. d4 {[%emt 0:00:10]} Nf6 {[%emt 0:00:21]} 2. c4 {[%emt 0:00:04]} e6 {[%emt 0:00:06]} 3. Nf3 {[%emt 0:00:05]} b6 {[%emt 0:00:49]} 4. g3 {[%emt 0:00:11]} Bb7 {[%emt 0:00:14]} 5. Bg2 {[%emt 0:00:06]} c5 {[%emt 0:01:10]} 6. d5 {[%emt 0:00:22]} exd5 {[%emt 0:01:31]} 7. cxd5 {[%emt 0:03:12]} Bxd5 {[%emt 0:12:02]} 8. Nc3 {[%emt 0:00:06]} Bc6 {[%emt 0:02:44]} 9. e4 {[%emt 0:00:15]} d6 {[%emt 0:02:48]} 10. O-O {[%emt 0:09:59]} Be7 {[%emt 0:03:32]} 11. Nh4 {[%emt 0:03:21]} g6 {[%emt 0:14:28]} 12. Bh6 {[%emt 0:02:33]} Qc7 {[%emt 0:15:12]} 13. Re1 {[%emt 0:06:22]} Nbd7 {[%emt 0:08:30]} 14. Nd5 {[%emt 0:03:58]} Bxd5 {[%emt 0:00:41]} 15. exd5 {[%emt 0:00:14]} Kd8 {[%emt 0:00:34]} 16. Nf3 {[%emt 0:09:57]} Bf8 {[%emt 0:15:47]} 17. Ng5 {[%emt 0:02:32]} Bxh6 {[%emt 0:05:37]} 18. Nxf7+ {[%emt 0:00:12]} Kc8 {[%emt 0:00:05]} 19. Nxh6 {[%emt 0:12:37]} Rf8 {[%emt 0:02:52]} 20. Qa4 {[%emt 0:05:18]} a6 {[%emt 0:02:33]} 21. Qc6 {[%emt 0:10:35]} Qxc6 {[%emt 0:01:54]} 22. dxc6 {[%emt 0:00:50]} Ne5 {[%emt 0:00:07]} 23. Rad1 {[%emt 0:03:55]} Kc7 {[%emt 0:03:32]} 24. f4 {[%emt 0:00:20]} Nxc6 {[%emt 0:00:34]} 25. Re6 {[%emt 0:07:58]} Rad8 {[%emt 0:01:02]} 26. Rde1 {[%emt 0:00:21]} Nd4 {[%emt 0:00:37]} 27. Re7+ {[%emt 0:00:09]} Rd7 {[%emt 0:00:27]} 28. Bh3 {[%emt 0:03:59]} Nf3+ {[%emt 0:00:05]} 29. Kf1 {[%emt 0:00:04]} Nd2+ {[%emt 0:02:55]} 30. Kf2 {[%emt 0:01:42]} Rxe7 {[%emt 0:00:05]} 31. Rxe7+ {[%emt 0:00:04]} Kc6 {[%emt 0:00:13]} 32. Nf7 {[%emt 0:01:28]} Nde4+ {[%emt 0:02:05]} 33. Kf3 {[%emt 0:02:32]} d5 {[%emt 0:00:24]} 34. Ne5+ {[%emt 0:00:48]} Kb5 {[%emt 0:00:27]} 35. Re6 {[%emt 0:05:07]} Nd2+ {[%emt 0:00:42]} 36. Ke2 {[%emt 0:04:04]} Nc4 {[%emt 0:00:01]} 37. Nd3 {[%emt 0:00:39]} Ka5 {[%emt 0:01:19]} 38. b3 {[%emt 0:00:30]} Na3 {[%emt 0:00:24]} 39. Ne5 {[%emt 0:01:04]} c4 {[%emt 0:00:38]} 40. Bf1 {[%emt 0:01:52]} Kb5 {[%emt 0:00:52]} 41. Kd1 {[%emt 0:01:50]} Ne4 {[%emt 0:11:17]} 42. Nd7 {[%emt 0:13:16]} Rd8 {[%emt 0:00:44]} 43. Rxb6+ {[%emt 0:01:09]} Ka5 {[%emt 0:00:17]} 44. b4+ {[%emt 0:00:38]} Ka4 {[%emt 0:00:47]} 45. Rxa6+ {[%emt 0:03:21]} Kxb4 {[%emt 0:00:48]} 46. Ne5 {[%emt 0:00:18]} Rc8 {[%emt 0:01:51]} 47. Bg2 {[%emt 0:01:39]} Nb5 {[%emt 0:02:33]} 48. Kc2 {[%emt 0:06:39]} Nd4+ {[%emt 0:00:16]} 49. Kc1 {[%emt 0:00:11]} Ne2+ {[%emt 0:02:02]} 50. Kc2 {[%emt 0:00:24]} Nd4+ {[%emt 0:00:06]} 51. Kc1 {[%emt 0:00:04]} Nb5 {[%emt 0:01:58]} 52. Kc2 {[%emt 0:01:51]} Kc5 {[%emt 0:03:03]} 53. a4 {[%emt 0:04:21]} Nd4+ {[%emt 0:00:16]} 54. Kc1 {[%emt 0:00:35]} Nb3+ {[%emt 0:00:30]} 55. Kc2 {[%emt 0:00:24]} Kd4 {[%emt 0:00:34]} 56. Nc6+ {[%emt 0:00:42]} Ke3 {[%emt 0:00:27]} 57. Ne7 {[%emt 0:01:16]} Rc5 {[%emt 0:01:25]} 58. Bxe4 {[%emt 0:00:37]} dxe4 {[%emt 0:00:40]} 59. Kc3 {[%emt 0:00:14]} Kf2 {[%emt 0:00:47]} 60. Re6 {[%emt 0:00:39]} e3 {[%emt 0:00:34]} 61. Nd5 {[%emt 0:00:24]} Rxd5 {[%emt 0:01:10]} 62. Kxc4 {[%emt 0:00:06]} Rd4+ {[%emt 0:00:13]} 63. Kxb3 {[%emt 0:00:08]} e2 {[%emt 0:00:06]} 64. Kc3 {[%emt 0:00:20]} Rxa4 {[%emt 0:00:09]} 65. Kb3 {[%emt 0:00:10]} Ra1 {[%emt 0:00:27]} 66. Kb2 {[%emt 0:00:08]} e1=Q {[%emt 0:00:15]} 0-1

[Event "Czech Juniors Boys 2024"]
[Site "Jaromerice nad Rokytnou"]
[Date "2024.03.10"]
[Round "3.3"]
[White "Vilimek, Vit"]
[Black "Jares, Michal"]
[Result "0-1"]
[ECO "B10"]
[WhiteElo "2061"]
[BlackElo "2347"]
[Annotator "RC"]
[PlyCount "80"]
[EventDate "2024.03.10"]
[EventType "tourn"]
[EventCountry "CZE"]
[SourceTitle "playchess.com"]
[Source "ChessBase"]
[SourceQuality "1"]
[TimeControl "40/5400+30:1800+30"]

1. e4 {[%emt 0:00:01]} c6 {[%emt 0:00:01]} 2. c4 {[%emt 0:00:09]} d5 {[%emt 0:00:16]} 3. exd5 {[%emt 0:00:13]} cxd5 {[%emt 0:00:02]} 4. cxd5 {[%emt 0:00:04]} Nf6 {[%emt 0:00:16]} 5. Nc3 {[%emt 0:00:08]} Nxd5 {[%emt 0:02:36]} 6. Bc4 {[%emt 0:00:42]} Nxc3 {[%emt 0:01:36]} 7. Qf3 {[%emt 0:00:45]} e6 {[%emt 0:01:15]} 8. dxc3 {[%emt 0:00:18]} Be7 {[%emt 0:01:12]} 9. Qg3 {[%emt 0:19:09]} Bf6 {[%emt 0:01:06]} 10. Bf4 {[%emt 0:12:30]} Nc6 {[%emt 0:05:10]} 11. Bc7 {[%emt 0:00:30]} Qe7 {[%emt 0:01:20]} 12. Bd6 {[%emt 0:00:37]} Qd8 {[%emt 0:10:58]} 13. Bc7 {[%emt 0:00:12]} Qe7 {[%emt 0:01:29]} 14. Bd6 {[%emt 0:00:07]} Qd7 {[%emt 0:12:36]} 15. O-O-O {[%emt 0:18:35]} e5 {[%emt 0:02:51]} 16. Nf3 {[%emt 0:13:44]} Qg4 {[%emt 0:15:37]} 17. Nxe5 {[%emt 0:14:42]} Bxe5 {[%emt 0:00:02]} 18. Bxe5 {[%emt 0:00:09]} Qxc4 {[%emt 0:00:22]} 19. Qxg7 {[%emt 0:00:35]} Rf8 {[%emt 0:00:12]} 20. Bd6 {[%emt 0:01:41]} Ne7 {[%emt 0:00:02]} 21. Rhe1 {[%emt 0:14:26]} Be6 {[%emt 0:00:01]} 22. Qf6 {[%emt 0:00:44]} Ng8 {[%emt 0:03:04]} 23. Qg7 {[%emt 0:00:24]} Ne7 {[%emt 0:00:34]} 24. Qf6 {[%emt 0:00:14]} O-O-O {[%emt 0:13:15]} 25. Bxe7 {[%emt 0:00:54]} Rxd1+ {[%emt 0:00:12]} 26. Rxd1 {[%emt 0:00:02]} Re8 {[%emt 0:00:09]} 27. Qe5 {[%emt 0:01:46]} Qxa2 {[%emt 0:05:00]} 28. Qc5+ {[%emt 0:00:16]} Kb8 {[%emt 0:00:10]} 29. Qd6+ {[%emt 0:00:02]} Kc8 {[%emt 0:00:23]} 30. Qc5+ {[%emt 0:00:06]} Kb8 {[%emt 0:00:01]} 31. Bd6+ {[%emt 0:01:19]} Ka8 {[%emt 0:00:02]} 32. Qb5 {[%emt 0:00:52]} Rd8 {[%emt 0:01:28]} 33. Qb4 {[%emt 0:00:28]} Bb3 {[%emt 0:00:44]} 34. Rd4 {[%emt 0:00:21]} Qa1+ {[%emt 0:00:01]} 35. Kd2 {[%emt 0:00:06]} Qxb2+ {[%emt 0:04:52]} 36. Ke3 {[%emt 0:00:18]} Qc1+ {[%emt 0:00:54]} 37. Kf3 {[%emt 0:00:53]} Bd1+ {[%emt 0:00:10]} 38. Ke4 {[%emt 0:00:07]} Qc2+ {[%emt 0:01:17]} 39. Kd5 {[%emt 0:00:41]} Qf5+ {[%emt 0:02:29]} 40. Kc4 {[%emt 0:00:03]} b5+ {[%emt 0:01:23]} 0-1